fUSD/lending_fUSD_20250222
["ID","MTS","AMOUNT","RATE_DAILY","PERIOD"]
[354091893,1740229871055,-500.0,0.00011616,2]
[354091894,1740229871064,-500.0,0.00011616,2]
[354091895,1740229871073,-1000.0,0.00011616,2]
[354091896,1740229871083,-500.0,0.00011616,2]
[354091897,1740229871092,-500.0,0.00011616,2]
[354091898,1740229871101,-518.748622,0.00011616,2]
[354091899,1740229871110,-500.0,0.00011616,2]
[354091900,1740229871119,-500.0,0.00011616,2]
[354091901,1740229871128,-500.0,0.00011616,2]
[354091902,1740229871137,-500.0,0.00011616,2]
[354091903,1740229871147,-500.0,0.00011616,2]
[354091904,1740229871156,-500.0,0.00011616,2]
[354091905,1740229871165,-500.0,0.00011616,2]
[354091906,1740229871175,-500.0,0.00011616,2]
[354091907,1740229871185,-500.0,0.00011616,2]
[354091908,1740229871194,-500.0,0.00011616,2]
[354091909,1740229871204,-500.0,0.00011616,2]
[354091910,1740229871213,-500.0,0.00011616,2]
[354091911,1740229871222,-500.0,0.00011616,2]
[354091912,1740229871231,-500.0,0.00011616,2]
[354091913,1740229871240,-500.0,0.00011616,2]
[354091914,1740229871249,-500.0,0.00011616,2]
[354091915,1740229871259,-500.0,0.00011616,2]
[354091916,1740229871268,-500.0,0.00011616,2]
[354091917,1740229871278,-500.0,0.00011616,2]
[354091918,1740229871287,-500.0,0.00011616,2]
[354091919,1740229871296,-395.96220943,0.00011616,2]
[354091920,1740229871305,-500.0,0.00011616,2]
[354091921,1740229871314,-500.0,0.00011616,2]
[354091922,1740229871323,-500.0,0.00011616,2]
[354091923,1740229871332,-500.0,0.00011616,2]
[354091924,1740229871341,-500.0,0.00011616,2]
[354091925,1740229871350,-500.0,0.00011616,2]
[354091926,1740229871360,-500.0,0.00011616,2]
[354091927,1740229871369,-500.0,0.00011616,2]
[354091928,1740229871379,-500.0,0.00011616,2]
[354091929,1740229871389,-500.0,0.00011616,2]
[354091930,1740229871399,-500.0,0.00011616,2]
[354091931,1740229871408,-500.0,0.00011616,2]
[354091932,1740229871418,-500.0,0.00011616,2]
[354091933,1740229871427,-500.0,0.00011616,2]
[354091934,1740229871436,-500.0,0.00011616,2]
[354091935,1740229871446,-500.0,0.00011616,2]
[354091936,1740229871454,-500.0,0.00011616,2]
[354091937,1740229871464,-500.0,0.00011616,2]
[354091938,1740229871474,-464.0181926,0.00011616,2]
[354091939,1740229871483,-500.0,0.00011616,2]
[354091940,1740229871492,-500.0,0.00011616,2]
[354091941,1740229871501,-500.0,0.00011616,2]
[354091942,1740229871510,-500.0,0.00011616,2]
[354091943,1740229871519,-512.43457306,0.00011616,2]
[354091944,1740229871529,-500.0,0.00011616,2]
[354091945,1740229871538,-500.0,0.00011616,2]
[354091946,1740229871548,-500.0,0.00011616,2]
[354091947,1740229871557,-500.0,0.00011616,2]
[354091948,1740229871567,-500.0,0.00011616,2]
[354091949,1740229871576,-500.0,0.00011616,2]
[354091950,1740229871585,-500.0,0.00011616,2]
[354091951,1740229871595,-500.0,0.00011616,2]
[354091952,1740229871604,-500.0,0.00011616,2]
[354091953,1740229871613,-500.0,0.00011616,2]
[354091954,1740229871623,-500.0,0.00011616,2]
[354091955,1740229871632,-500.0,0.00011616,2]
[354091956,1740229871642,-500.0,0.00011616,2]
[354091957,1740229871654,-500.0,0.00011616,2]
[354091958,1740229871663,-523.13696858,0.00011616,2]
[354091959,1740229871672,-500.0,0.00011616,2]
[354091960,1740229871681,-500.0,0.00011616,2]
[354091961,1740229871692,-230.06628456,0.00011616,2]
[354091962,1740229871702,-500.0,0.00011616,2]
[354091963,1740229871711,-500.0,0.00011616,2]
[354091964,1740229871722,-500.0,0.00011616,2]
[354091965,1740229871731,-500.0,0.00011616,2]
[354091966,1740229871740,-500.0,0.00011616,2]
[354091967,1740229871749,-500.0,0.00011616,2]
[354091968,1740229871758,-500.0,0.00011616,2]
[354091969,1740229871768,-500.0,0.00011616,2]
[354091970,1740229871778,-500.0,0.00011616,2]
[354091971,1740229871788,-500.0,0.00011616,2]
[354091972,1740229871798,-500.0,0.00011616,2]
[354091973,1740229871809,-500.0,0.00011616,2]
[354091974,1740229871818,-500.0,0.00011616,2]
[354091975,1740229871828,-596.94,0.00011676,2]
[354091976,1740229871838,-500.0,0.00011696,2]
[354091977,1740229871850,-500.0,0.00011696,2]
[354091978,1740229871861,-500.0,0.00011696,2]
[354091979,1740229871873,-500.0,0.00011696,2]
[354091980,1740229871882,-500.0,0.00011696,2]
[354091981,1740229871891,-614.04,0.00011696,2]
[354091982,1740229871900,-500.0,0.00011696,2]
[354091983,1740229871909,-500.0,0.00011696,2]
[354091984,1740229871919,-500.0,0.00011696,2]
[354091985,1740229871929,-361.95258119,0.00011696,2]
[354091986,1740229871938,-500.0,0.00011696,2]
[354091987,1740229871947,-500.0,0.00011696,2]
[354091988,1740229871956,-547.55610056,0.00011696,2]
[354091989,1740229871965,-500.0,0.00011696,2]
[354091990,1740229871975,-500.0,0.00011696,2]
[354091991,1740229871984,-500.0,0.00011696,2]
[354091992,1740229871993,-500.0,0.00011696,2]
[354091993,1740229872002,-500.0,0.00011696,2]
[354091994,1740229872012,-500.0,0.00011696,2]
[354091995,1740229872021,-500.0,0.00011696,2]
[354091996,1740229872030,-500.0,0.00011696,2]
[354091997,1740229872040,-500.0,0.00011696,2]
[354091998,1740229872049,-500.0,0.00011696,2]
[354091999,1740229872058,-500.0,0.00011696,2]
[354092000,1740229872067,-251.033156,0.00011696,2]
[354092001,1740229872076,-500.0,0.00011696,2]
[354092002,1740229872085,-500.0,0.00011696,2]
[354092003,1740229872095,-500.0,0.00011696,2]
[354092004,1740229872104,-500.0,0.00011696,2]
[354092005,1740229872113,-500.0,0.00011696,2]
[354092006,1740229872122,-500.0,0.00011696,2]
[354092007,1740229872131,-500.0,0.00011696,2]
[354092008,1740229872140,-500.0,0.00011697,2]
[354092009,1740229872150,-500.0,0.00011697,2]
[354092010,1740229872159,-500.0,0.00011697,2]
[354092011,1740229872168,-500.0,0.00011697,2]
[354092012,1740229872177,-500.0,0.00011697,2]
[354092013,1740229872187,-500.0,0.00011697,2]
[354092014,1740229872196,-500.0,0.00011697,2]
[354092015,1740229872204,-500.0,0.00011697,2]
[354092016,1740229872214,-589.12,0.00011697,2]
[354092017,1740229872223,-500.0,0.00011697,2]
[354092018,1740229872232,-500.0,0.00011697,2]
[354092019,1740229872241,-500.0,0.00011697,2]
[354092020,1740229872250,-500.0,0.00011697,2]
[354092021,1740229872260,-500.0,0.00011697,2]
[354092022,1740229872270,-500.0,0.00011697,2]
[354092023,1740229872280,-500.0,0.00011697,2]
[354092024,1740229872289,-500.0,0.00011697,2]
[354092025,1740229872299,-500.0,0.00011697,2]
[354092026,1740229872309,-500.0,0.00011697,2]
[354092027,1740229872318,-500.0,0.00011698,2]
[354092028,1740229872327,-500.0,0.00011698,2]
[354092029,1740229872337,-500.0,0.00011698,2]
[354092030,1740229872347,-500.0,0.00011698,2]
[354092031,1740229872356,-502.81154856,0.00011698,2]
[354092032,1740229872366,-500.0,0.00011698,2]
[354092033,1740229872376,-500.0,0.00011698,2]
[354092034,1740229872385,-500.0,0.00011698,2]
[354092035,1740229872394,-500.0,0.00011698,2]
[354092036,1740229872404,-500.0,0.00011698,2]
[354092037,1740229872413,-467.98722987,0.00011698,2]
[354092038,1740229872423,-500.0,0.00011698,2]
[354092039,1740229872432,-500.0,0.00011698,2]
[354092040,1740229872441,-500.0,0.00011698,2]
[354092041,1740229872450,-500.0,0.00011698,2]
[354092042,1740229872459,-500.0,0.00011698,2]
[354092043,1740229872468,-500.0,0.00011698,2]
[354092044,1740229872477,-500.0,0.00011698,2]
[354092045,1740229872486,-500.0,0.00011698,2]
[354092046,1740229872495,-500.0,0.00011698,2]
[354092047,1740229872504,-500.0,0.00011698,2]
[354092048,1740229872514,-500.0,0.00011698,2]
[354092049,1740229872523,-500.0,0.00011698,2]
[354092050,1740229872532,-500.0,0.00011698,2]
[354092051,1740229872541,-500.0,0.00011698,2]
[354092052,1740229872550,-500.0,0.00011698,2]
[354092053,1740229872559,-500.0,0.00011698,2]
[354092054,1740229872568,-500.0,0.00011698,2]
[354092055,1740229872576,-500.0,0.00011698,2]
[354092056,1740229872585,-500.0,0.00011698,2]
[354092057,1740229872594,-500.0,0.00011698,2]
[354092058,1740229872603,-500.0,0.00011698,2]
[354092059,1740229872613,-510.60245977,0.00011698,2]
[354092060,1740229872622,-500.0,0.00011698,2]
[354092061,1740229872631,-500.0,0.00011698,2]
[354092062,1740229872640,-500.0,0.00011698,2]
[354092063,1740229872654,-500.0,0.00011698,2]
[354092064,1740229872663,-500.0,0.00011698,2]
[354092065,1740229872672,-500.0,0.00011698,2]
[354092066,1740229872681,-500.0,0.00011698,2]
[354092067,1740229872691,-513.26099833,0.00011698,2]
[354092068,1740229872699,-500.0,0.00011698,2]
[354092069,1740229872708,-500.0,0.00011698,2]
[354092070,1740229872717,-500.0,0.00011698,2]
[354092071,1740229872727,-500.0,0.00011698,2]
[354092072,1740229872736,-631.28356603,0.00011698,2]
[354092073,1740229872745,-500.0,0.00011698,2]
[354092074,1740229872754,-500.0,0.00011698,2]
[354092075,1740229872763,-500.0,0.00011698,2]
[354092076,1740229872772,-500.0,0.00011698,2]
[354092077,1740229872782,-500.0,0.00011698,2]
[354092078,1740229872791,-500.0,0.00011698,2]
[354092079,1740229872801,-500.0,0.00011698,2]
[354092080,1740229872810,-500.0,0.00011698,2]
[354092081,1740229872819,-500.0,0.00011698,2]
[354092082,1740229872829,-500.0,0.00011698,2]
[354092083,1740229872838,-176.32671299,0.00011698,2]
[354092084,1740229872847,-574.10283594,0.00011698,2]
[354092085,1740229872856,-265.71144936,0.00011698,2]
[354092086,1740229872866,-500.0,0.00011698,2]
[354092087,1740229872875,-500.0,0.00011698,2]
[354092088,1740229872885,-500.0,0.00011698,2]
[354092089,1740229872894,-585.42215851,0.00011698,2]
[354092090,1740229872903,-500.0,0.00011698,2]
[354092091,1740229872913,-500.0,0.00011698,2]
[354092092,1740229872922,-500.0,0.00011698,2]
[354092093,1740229872931,-500.0,0.00011698,2]
[354092094,1740229872941,-500.0,0.00011698,2]
[354092095,1740229872950,-500.0,0.00011698,2]
[354092096,1740229872960,-500.0,0.00011698,2]
[354092097,1740229872969,-500.0,0.00011698,2]
[354092098,1740229872979,-984.97206488,0.00011724,2]
[354092099,1740229872988,-500.0,0.00011778,2]
[354092100,1740229872998,-500.0,0.00011778,2]
[354092101,1740229873007,-169.47,0.00011778,2]
[354092102,1740229873016,-500.0,0.00011778,2]
[354092103,1740229873024,-500.0,0.00011778,2]
[354092104,1740229873034,-500.0,0.00011778,2]
[354092105,1740229873046,-549.09,0.00011778,2]
[354092106,1740229873055,-494.01,0.00011778,2]
[354092107,1740229873065,-500.0,0.00011778,2]
[354092108,1740229873074,-500.0,0.00011778,2]
[354092109,1740229873083,-500.0,0.00011778,2]
[354092110,1740229873091,-500.0,0.00011778,2]
[354092111,1740229873100,-500.0,0.00011778,2]
[354092112,1740229873109,-500.0,0.00011778,2]
[354092113,1740229873118,-500.0,0.00011778,2]
[354092114,1740229873127,-500.0,0.00011778,2]
[354092115,1740229873137,-500.0,0.00011779,2]
[354092116,1740229873146,-500.0,0.00011779,2]
[354092117,1740229873155,-500.0,0.00011779,2]
[354092118,1740229873165,-500.0,0.0001178,2]
[354092119,1740229873174,-500.0,0.0001178,2]
[354092120,1740229873184,-500.0,0.0001178,2]
[354092121,1740229873193,-500.0,0.0001178,2]
[354092122,1740229873204,-528.88,0.0001178,2]
[354092123,1740229873214,-500.0,0.0001178,2]
[354092124,1740229873224,-500.0,0.0001178,2]
[354092125,1740229873233,-500.0,0.0001178,2]
[354092126,1740229873243,-500.0,0.0001178,2]
[354092127,1740229873252,-500.0,0.0001178,2]
[354092128,1740229873262,-500.0,0.0001178,2]
[354092129,1740229873271,-500.0,0.0001178,2]
[354092130,1740229873281,-500.0,0.0001178,2]
[354092131,1740229873290,-500.0,0.0001178,2]
[354092132,1740229873299,-500.0,0.0001178,2]
[354092133,1740229873308,-500.0,0.0001178,2]
[354092134,1740229873318,-500.0,0.0001178,2]
[354092135,1740229873328,-500.0,0.0001178,2]
[354092136,1740229873339,-500.0,0.0001178,2]
[354092137,1740229873349,-500.0,0.0001178,2]
[354092138,1740229873358,-459.7953526,0.0001178,2]
[354092139,1740229873368,-500.0,0.0001178,2]
[354092140,1740229873379,-500.0,0.0001178,2]
[354092141,1740229873389,-500.0,0.0001178,2]
[354092142,1740229873534,-265.63783919,0.0001178,2]
[354092143,1740229873544,-500.0,0.0001178,2]
[354092144,1740229873554,-183.76,0.0001186,2]
[354092145,1740229873564,-500.0,0.0001186,2]
[354092146,1740229873573,-500.0,0.0001186,2]
[354092147,1740229873583,-500.0,0.0001186,2]
[354092148,1740229873592,-500.0,0.0001186,2]
[354092149,1740229873602,-500.0,0.0001186,2]
[354092150,1740229873612,-500.0,0.0001186,2]
[354092151,1740229873623,-500.0,0.0001186,2]
[354092152,1740229873634,-500.0,0.0001186,2]
[354092153,1740229873645,-500.0,0.0001186,2]
[354092154,1740229873656,-500.0,0.0001186,2]
[354092155,1740229873666,-336.57,0.0001186,2]
[354092156,1740229873676,-218.64,0.00011861,2]
[354092157,1740229873686,-500.0,0.00011861,2]
[354092158,1740229873698,-500.0,0.00011861,2]
[354092159,1740229873708,-500.0,0.00011862,2]
[354092160,1740229873719,-500.0,0.00011862,2]
[354092161,1740229873729,-500.0,0.00011862,2]
[354092162,1740229873739,-210.08772697,0.000119,2]
[354092163,1740229873750,-1457.44541819,0.0001194,2]
[354092164,1740229873760,-500.0,0.00011942,2]
[354092165,1740229873770,-500.0,0.00011942,2]
[354092166,1740229873780,-500.0,0.00011942,2]
[354092167,1740229873791,-500.0,0.00011942,2]
[354092168,1740229873801,-500.0,0.00011942,2]
[354092169,1740229873811,-500.0,0.00011942,2]
[354092170,1740229873821,-500.0,0.00011942,2]
[354092171,1740229873832,-279.13,0.00011942,2]
[354092172,1740229873841,-266.8,0.00011942,2]
[354092173,1740229873851,-500.0,0.00011942,2]
[354092174,1740229873861,-500.0,0.00011943,2]
[354092175,1740229873871,-500.0,0.00011943,2]
[354092176,1740229873882,-500.0,0.00011944,2]
[354092177,1740229873892,-500.0,0.00011944,2]
[354092178,1740229873901,-500.0,0.00011944,2]
[354092179,1740229873911,-500.0,0.00012024,2]
[354092180,1740229873921,-500.0,0.00012024,2]
[354092181,1740229873930,-620.76,0.00012024,2]
[354092182,1740229873941,-500.0,0.00012024,2]
[354092183,1740229873951,-303.06,0.00012024,2]
[354092184,1740229873960,-639.21,0.00012024,2]
[354092185,1740229873970,-500.0,0.00012024,2]
[354092186,1740229873979,-500.0,0.00012024,2]
[354092187,1740229873989,-500.0,0.00012026,2]
[354092188,1740229873999,-500.0,0.00012026,2]
[354092189,1740229874009,-500.0,0.00012027,2]
[354092190,1740229874018,-500.0,0.00012027,2]
[354092191,1740229874028,-500.0,0.00012027,2]
[354092192,1740229874039,-500.0,0.00012107,2]
[354092193,1740229874049,-500.0,0.00012107,2]
[354092194,1740229874059,-500.0,0.00012107,2]
[354092195,1740229874069,-466.5,0.00012107,2]
[354092196,1740229874080,-500.0,0.00012107,2]
[354092197,1740229874090,-500.0,0.00012108,2]
[354092198,1740229874100,-500.0,0.00012108,2]
[354092199,1740229874111,-500.0,0.00012109,2]
[354092200,1740229874120,-640.56,0.00012109,2]
[354092201,1740229874130,-500.0,0.00012109,2]
[354092202,1740229874140,-500.0,0.00012189,2]
[354092203,1740229874150,-198.14,0.00012189,2]
[354092204,1740229874160,-547.13,0.00012189,2]
[354092205,1740229874171,-500.0,0.00012189,2]
[354092206,1740229874181,-283.6,0.0001219,2]
[354092207,1740229874191,-500.0,0.0001219,2]
[354092208,1740229874202,-500.0,0.00012191,2]
[354092209,1740229874212,-500.0,0.00012191,2]
[354092210,1740229874222,-500.0,0.00012271,2]
[354092211,1740229874232,-500.0,0.00012271,2]
[354092212,1740229874242,-500.0,0.00012272,2]
[354092213,1740229874252,-500.0,0.00012273,2]
[354092214,1740229874262,-500.0,0.00012273,2]
[354092215,1740229874272,-500.0,0.00012353,2]
[354092216,1740229874283,-500.0,0.00012353,2]
[354092217,1740229874293,-500.0,0.00012354,2]
[354092218,1740229874304,-500.0,0.00012355,2]
[354092219,1740229874314,-163.27,0.00012355,2]
[354092220,1740229874324,-500.0,0.00012435,2]
[354092221,1740229874334,-500.0,0.00012435,2]
[354092222,1740229874344,-500.0,0.00012436,2]
[354092223,1740229874355,-500.0,0.00012438,2]
[354092224,1740229874366,-280.165,0.00012439,2]
[354092225,1740229874376,-158.999,0.00012439,2]
[354092226,1740229874386,-250.0,0.00012489,2]
[354092227,1740229874397,-984.97206488,0.00012509,2]
[354092228,1740229874407,-500.0,0.00012518,2]
[354092229,1740229874417,-515.86799989,0.00012518,2]
[354092230,1740229874427,-500.0,0.00012519,2]
[354092231,1740229874438,-500.0,0.0001252,2]
[354092232,1740229874449,-500.0,0.000126,2]
[354092233,1740229874459,-500.0,0.00012601,2]
[354092234,1740229874470,-500.0,0.00012602,2]
[354092235,1740229874481,-500.0,0.00012682,2]
[354092236,1740229874490,-275.37,0.00012683,2]
[354092237,1740229874500,-500.0,0.00012684,2]
[354092238,1740229874510,-500.0,0.00012764,2]
[354092239,1740229874520,-500.0,0.00012766,2]
[354092240,1740229874531,-210.08772692,0.000128,2]
[354092241,1740229874541,-500.0,0.00012846,2]
[354092242,1740229874551,-189.2,0.00012849,2]
[354092243,1740229874562,-206.078,0.00012886,2]
[354092244,1740229874573,-272.417,0.00012886,2]
[354092245,1740229874583,-155.001,0.00012886,2]
[354092246,1740229874593,-170.63,0.00012886,2]
[354092247,1740229874604,-1424.0,0.00012886,2]
[354092248,1740229874615,-421.44,0.00012886,2]
[354092249,1740229874626,-150.0,0.00012886,2]
[354092250,1740229874636,-240.24,0.00012929,2]
[354092251,1740229874648,-500.0,0.00012955,2]
[354092252,1740229874659,-500.0,0.00012955,2]
[354092253,1740229874670,-1000.0,0.0001298,2]
[354092254,1740229874680,-1000.0,0.0001298,2]
[354092255,1740229874691,-1000.0,0.0001298,2]
[354092256,1740229874701,-1000.0,0.0001298,2]
[354092257,1740229874711,-1000.0,0.0001298,2]
[354092258,1740229874721,-1000.0,0.0001298,2]
[354092259,1740229874733,-1000.0,0.0001298,2]
[354092260,1740229874743,-1000.0,0.0001298,2]
[354092261,1740229874754,-1000.0,0.0001298,2]
[354092262,1740229874764,-1000.0,0.0001298,2]
[354092263,1740229874774,-2353.17,0.00013,2]
[354092264,1740229874784,-984.97206488,0.00013293,2]
[354092265,1740229874795,-165.20832265,0.00013365,2]
[354092266,1740229874805,-490.28,0.00013699,2]
[354092267,1740229874815,-150.0,0.00013699,2]
[354092268,1740229874826,-224.52,0.00013699,2]
[354092269,1740229874836,-200.0,0.00013699,2]
[354092270,1740229874846,-210.08772692,0.000137,2]
[354092271,1740229874856,-1326.33,0.000137,2]
[354092272,1740229874866,-163.931,0.000138,2]
[354092273,1740229874877,-596.94,0.0001394,2]
[354092274,1740229874886,-160.02,0.00014002,2]
[354092275,1740229874896,-5008.91266,0.00014051,2]
[354092276,1740229874906,-3492.75,0.00014053,2]
[354092277,1740229874916,-150.0,0.00014059,2]
[354092278,1740229874925,-984.97206488,0.00014078,2]
[354092279,1740229874935,-1795.19,0.00014106,7]
[354092280,1740229874944,-1795.19,0.00014106,7]
[354092281,1740229874953,-1795.19,0.00014106,7]
[354092282,1740229874963,-1795.19,0.00014106,7]
[354092283,1740229874972,-1000.0,0.00014262,2]
[354092284,1740229874982,-491.54212149,0.00014325,2]
[354092285,1740229874992,-500.0,0.00014325,2]
[354092286,1740229875001,-1795.19,0.0001438,7]
[354092287,1740229875011,-1795.19,0.0001438,7]
[354092288,1740229875021,-150.0,0.0001442,2]
[354092289,1740229875030,-880.64,0.0001458,2]
[354092290,1740229875040,-210.08772692,0.000146,2]
[354092291,1740229875050,-2079.0,0.00014645,2]
[354092292,1740229875060,-500.0,0.00014647,2]
[354092293,1740229875069,-1795.19,0.00014654,7]
[354092294,1740229875078,-1795.19,0.00014654,7]
[354092295,1740229875087,-500.0,0.00014747,2]
[354092296,1740229875097,-150.0,0.0001478,2]
[354092297,1740229875106,-2079.0,0.00014796,2]
[354092298,1740229875116,-500.0,0.00014799,2]
[354092299,1740229875125,-1462.0,0.000148,2]
[354092300,1740229875135,-154.11,0.000148,31]
[354092301,1740229875143,-154.11,0.000148,31]
[354092302,1740229875153,-154.11,0.000148,31]
[354092303,1740229875162,-154.11,0.000148,31]
[354092304,1740229875171,-154.11,0.000148,31]
[354092305,1740229875180,-154.11,0.000148,31]
[354092306,1740229875188,-154.11,0.000148,31]
[354092307,1740229875198,-154.11,0.000148,31]
[354092308,1740229875208,-154.11,0.000148,31]
[354092309,1740229875217,-154.11,0.000148,31]
[354092310,1740229875226,-154.11,0.000148,31]
[354092311,1740229875236,-154.11,0.000148,31]
[354092312,1740229875245,-154.11,0.000148,31]
[354092313,1740229875254,-154.11,0.000148,31]
[354092314,1740229875264,-154.11,0.000148,31]
[354092315,1740229875273,-154.11,0.000148,31]
[354092316,1740229875282,-267255.51808373,0.000148,3]
[354092317,1740229875450,-1318.2551,0.000148,3]
[354092318,1740229875462,-1552.022059,0.000148,3]
[354092319,1740229875479,-551.275395,0.000148,3]
[354092320,1740229875492,-397.87610775,0.000148,3]
[354092321,1740229875519,-262.6,0.0001104,2]
[354092322,1740229875531,-237.4,0.0001104,2]
[354092323,1740229875540,-137.15,0.00011613,2]
[354092324,1740229875551,-362.85,0.00011613,2]
[354092325,1740229875561,-382.98365208,0.000148,3]
[354092326,1740229877281,223.095,0.00013,10]
[354092328,1740230240968,537.24,8.392e-05,2]
[354092331,1740230777534,10000.0,0.00020123,120]
[354092332,1740230781660,10000.0,0.00020123,120]
[354092333,1740230800204,10000.0,0.00020123,120]
[354092334,1740230822335,10000.0,0.00020123,120]
[354092336,1740230861377,10000.0,0.00020123,120]
[354092337,1740230863676,10000.0,0.00020123,120]
[354092340,1740230878575,10138.4,0.00020123,120]
[354092353,1740231032123,-1064.11158124,9.9e-05,2]
[354092354,1740231032136,-1435.88841876,9.9e-05,2]
[354092355,1740231032146,-2207.50159971,9.9e-05,2]
[354092356,1740231032155,-300.0,9.998e-05,2]
[354092357,1740231032166,-3417.09559377,9.999e-05,2]
[354092358,1740231032175,-291.98258804,9.999e-05,2]
[354092359,1740231032184,-500.0,9.999e-05,2]
[354092360,1740231032193,-500.0,9.999e-05,2]
[354092361,1740231032203,-500.0,9.999e-05,2]
[354092362,1740231032212,-164.73173343,9.999e-05,2]
[354092363,1740231032222,-322030.24296082,0.0001,2]
[354092364,1740231032234,-265673.57759764,0.0001,2]
[354092365,1740231032246,-23832.96389353,0.0001,2]
[354092366,1740231032257,-46879.2322859,0.0001,2]
[354092367,1740231032275,-307.55716838,0.0001,2]
[354092368,1740231032287,-4086.11267,0.0001,2]
[354092369,1740231032306,-738.69657323,0.0001,2]
[354092370,1740231032349,-248131.32935713,0.0001,2]
[354092371,1740231032360,-307.31279,0.0001,2]
[354092372,1740231032375,-9265.91588336,0.0001,2]
[354092373,1740231032408,-2510.60206527,0.0001,2]
[354092374,1740231032420,-10250.59866244,0.0001,2]
[354092917,1740231038200,-1516.09324323,0.0001,2]
[354092956,1740231040292,-3017.40658316,0.0001,2]
[354092957,1740231040303,-265.1286,0.0001,2]
[354092958,1740231040568,-4597.75,0.0001,2]
[354093252,1740231043417,-472.71276252,0.0001,2]
[354093255,1740231043428,-2944.99310953,0.0001,2]
[354093374,1740231058520,113607.77537437,0.0001299,7]
[354093375,1740231058542,51931.8148428,0.0001299,7]
[354093376,1740231250319,1222.17206095,8.661e-05,7]
[354093377,1740231250719,601.82047584,8.661e-05,7]
[354093379,1740231764400,570.16,8.219e-05,2]
[354093380,1740231942435,51036.91451965,0.00013,7]
[354093387,1740232232414,-201.76,9.65e-05,2]
[354093388,1740232232423,-300.0,9.7e-05,3]
[354093389,1740232232433,-2817.9635829,9.8e-05,2]
[354093390,1740232232526,-1456.3514171,9.8e-05,2]
[354093391,1740232232535,-109.16458605,9.8e-05,2]
[354093392,1740232232583,-51.89541395,9.8e-05,2]
[354093393,1740232232592,-403.02987824,9.8e-05,3]
[354093394,1740232232696,-296.97012176,9.8e-05,3]
[354093395,1740232232706,-901.56625727,9.9e-05,2]
[354093396,1740232232755,-3687.84604273,9.9e-05,2]
[354093397,1740232232765,-1000.0,9.9e-05,3]
[354093398,1740232232774,-3490.5,9.902e-05,2]
[354093399,1740232232783,-250.0,9.904e-05,2]
[354093400,1740232232792,-495.65934287,9.991e-05,2]
[354093401,1740232232805,-504.34065713,9.991e-05,2]
[354093413,1740232232815,-500.0,9.999e-05,2]
[354093415,1740232233009,-150.0,9.999e-05,2]
[354093417,1740232233019,-500.0,9.999e-05,2]
[354093419,1740232233028,-500.0,9.999e-05,2]
[354093422,1740232233038,-155.267975,9.999e-05,2]
[354093424,1740232233047,-500.0,9.999e-05,2]
[354093426,1740232233057,-500.0,9.999e-05,2]
[354093428,1740232233066,-500.0,9.999e-05,2]
[354093430,1740232233076,-500.0,9.999e-05,2]